Cogmind - Beta 11.1 @@@ ROGUE MODE // 2022.05.28 @ 14:55:32 Player: Demise Result: Destroyed by as-10012 with Assembled Blade Performance ------------- Evolutions (0) 0 Regions Visited (4) 800 Robots Destroyed (40) 200 Value Destroyed (556) 556 Prototype IDs (0) 0 Alien Tech Used (0) 0 Bonus (0) 0 TOTAL SCORE: 1556 Bonus ------- None Cogmind --------- Core Integrity 0/250 Matter 268/300 Energy 215/250 System Corruption 0% Temperature Cool (0) Movement Rolling (105) Ox1 Location -9/Mines Parts ------- > --- POWER (1) -------- Ion Engine > --- PROPULSION (2) --- Wheel Compact Wheel > --- UTILITY (2) ------ High-capacity Storage Unit Seismic Detector > --- WEAPON (2) ------- Light Assault Rifle Light Assault Rifle > --- INVENTORY (20) --- Wheel Compact Wheel Improved Heat Sink High-capacity Matter Pod (200) Structural Scanner Signal Interpreter Transport Network Coupler Propulsion Shielding Light Assault Rifle Light Assault Rifle Light Assault Rifle Light Assault Rifle Mini Grenade Launcher Mini Grenade Launcher Hammer Peak State ------------ > --- POWER ------------ Ion Engine > --- PROPULSION ------- Wheel Compact Wheel > --- UTILITY ---------- High-capacity Storage Unit Seismic Detector > --- WEAPON ----------- Light Assault Rifle Mini Grenade Launcher > --- INVENTORY -------- Wheel Compact Wheel Improved Heat Sink High-capacity Matter Pod Structural Scanner Signal Interpreter Transport Network Coupler Propulsion Shielding Light Assault Rifle Light Assault Rifle Light Assault Rifle Light Assault Rifle Light Assault Rifle Mini Grenade Launcher Hammer [Rating: 9] Favorites ----------- Power Ion Engine Engine Ion Engine Propulsion Wheel Wheel Wheel Utility Seismic Detector Device Seismic Detector Storage Large Storage Unit Protection Propulsion Shielding Weapon Light Assault Rifle Ballistic Gun Light Assault Rifle Launcher Mini Grenade Launcher Impact Weapon Hammer Build | -11 -10 -10 -10 -9 ------- Run | Scr Mat Min Exi Min Slots Evolved . | . . . . . Power . | . . . . . Propulsion . | . . . . . Utility . | . . . . . Weapon . | . . . . . Parts Attached 31 | 8 16 3 1 3 Power 5 | 1 4 . . . Engine 5 | 1 4 . . . Core . | . . . . . Reactor . | . . . . . Propulsion 8 | 3 5 . . . Treads . | . . . . . Leg . | . . . . . Wheel 8 | 3 5 . . . Hover . | . . . . . Flight . | . . . . . Utility 10 | 2 5 2 1 . Device 3 | 1 1 1 . . Storage 5 | 1 3 . 1 . Processor . | . . . . . Hackware . | . . . . . Protection 2 | . 1 1 . . Artifact . | . . . . . Weapon 8 | 2 2 1 . 3 Energy Gun . | . . . . . Energy Cannon . | . . . . . Ballistic Gun 5 | 2 1 1 . 1 Ballistic Cannon . | . . . . . Launcher 1 | . . . . 1 Special Weapon . | . . . . . Impact Weapon 2 | . 1 . . 1 Slashing Weapon . | . . . . . Piercing Weapon . | . . . . . Special Melee Weapon . | . . . . . Unidentified Prototypes . | . . . . . Parts Lost 1 | . 1 . . . Power 1 | . 1 . . . Propulsion . | . . . . . Utility . | . . . . . Weapon . | . . . . . Highest Loss Streak 1 | . 1 . . . To Critical Strikes . | . . . . . Average Slot Usage (%) 98 | . 98 100 100 100 Engine 12 | . 12 14 14 14 Wheel 28 | . 28 28 28 28 Device 10 | . 8 13 14 14 Storage 14 | . 14 14 14 14 Protection 3 | . 5 . . . Ballistic Gun 26 | . 26 28 28 21 Impact Weapon 1 | . 1 . . 7 Naked Turns . | . . . . . Heaviest Build 49 | 13 28 28 48 49 Greatest Support 26 | 26 26 26 26 26 Greatest Overweight (x) 1 | . 1 1 1 1 Average Overweight (x) . | . . 1 1 1 Largest Inventory Capacity 20 | 8 15 15 20 20 Average Capacity 13 | 5 12 15 18 20 Most Carried 15 | 5 15 15 15 15 Average Carried 11 | 2 10 15 15 15 Final Capacity 20 | 8 15 15 20 20 Final Carried 15 | 5 15 15 15 15 Class Distribution -------------------- 50% | Mutant 49% | Scavenger-Mutant Dominant Class ---------------- Mutant | -10/Materials Scavenger-Mutant | -10/Mines Scavenger-Mutant | -10/Exiles Scavenger-Mutant | -9/Mines Resources | -11 -10 -10 -10 -9 ----------- Run | Scr Mat Min Exi Min Matter Collected 915 | 294 557 54 10 . Remotely . | . . . . . Salvage Created 1259 | 117 1026 116 . . Parts 88 | 9 73 6 . . Haulers Intercepted 2 | . 2 . . . Recyclers Shooed 1 | . 1 . . . Parts Field Recycled . | . . . . . Retrieved Matter . | . . . . . Parts Self-Destructed . | . . . . . Prevented . | . . . . . Kills | -11 -10 -10 -10 -9 ------- Run | Scr Mat Min Exi Min Combat Hostiles Destroyed 18 | . 14 4 . . Guns 18 | . 14 4 . . Classes Destroyed 8 | 2 6 . . . Worker 9 | . 9 . . . Builder 1 | . 1 . . . Tunneler 2 | 2 . . . . Hauler 2 | . 2 . . . Recycler 5 | 1 4 . . . Watcher 3 | . 3 . . . Swarmer 8 | . 6 2 . . Grunt 10 | . 8 2 . . Best Kill Streak 6 | 2 6 4 . . Combat Bots Only 4 | . 3 4 . . Max Kills in Single Turn 1 | 1 1 1 . . Gunslinging . | . . . . . Exploded . | . . . . . Melee . | . . . . . Uniques/NPCs Destroyed . | . . . . . Combat | -11 -10 -10 -10 -9 -------- Run | Scr Mat Min Exi Min Damage Taken 741 | . 422 235 . 84 Core 269 | . 173 69 . 27 Absorbed by Shields . | . . . . . Redirected to Shielding 10 | . 8 2 . . Core Remaining (%) 100 | 100 . . . . Volleys Fired 121 | 7 101 12 . 1 Largest 2 | 2 2 2 . 2 Hottest 40 | 40 40 40 . 40 Shots Fired 242 | 14 202 24 . 2 Gun 242 | 14 202 24 . 2 Cannon . | . . . . . Launcher . | . . . . . Special . | . . . . . Kinetic 242 | 14 202 24 . 2 Thermal . | . . . . . Explosive . | . . . . . Electromagnetic . | . . . . . Robot Hit Streak 16 | 5 16 6 . 3 Robot Miss Streak 2 | 1 2 2 . 1 Penetration Max . | . . . . . Secondary Targets 1 | . 1 . . . Max Gunslinging Chain 1 | . 1 . . . Shots Hit Robots 160 | 10 135 14 . 1 Core Hits 81 | 7 64 10 . . Critical Kills . | . . . . . Critical Parts Destroyed . | . . . . . Critical Strikes . | . . . . . Melee Attacks 4 | . 2 . . 2 Impact 4 | . 2 . . 2 Slashing . | . . . . . Piercing . | . . . . . Sneak Attacks . | . . . . . Combat Hostiles . | . . . . . Follow-up Attacks . | . . . . . Damage Inflicted 1308 | 77 1121 102 . 8 Guns 1308 | 77 1121 102 . 8 Cannons . | . . . . . Explosions . | . . . . . Melee . | . . . . . Ramming . | . . . . . Kinetic 1308 | 77 1121 102 . 8 Thermal . | . . . . . Explosive . | . . . . . Electromagnetic . | . . . . . Impact . | . . . . . Slashing . | . . . . . Piercing . | . . . . . Highest Corruption . | . . . . . Average Corruption . | . . . . . Corruption Purged . | . . . . . Corruption Blocked . | . . . . . Overload Shots . | . . . . . Overflow Damage . | . . . . . Projectiles . | . . . . . Explosions . | . . . . . Melee . | . . . . . Knockbacks . | . . . . . Impact . | . . . . . Kinetic . | . . . . . Secondary . | . . . . . Self-Inflicted Damage . | . . . . . Shots . | . . . . . Rammed . | . . . . . Targets Rammed . | . . . . . Kicked . | . . . . . Crushed . | . . . . . Highest Temperature 50 | . 18 50 . . Average Temperature 13 | . 8 24 . . Received Heat Transfer 279 | . 144 135 . . Siege Activations . | . . . . . Robots Corrupted . | . . . . . Combat Hostiles . | . . . . . Parts Fried . | . . . . . Impact Corruptions . | . . . . . Robots Melted . | . . . . . Combat Hostiles . | . . . . . Parts Melted . | . . . . . Heat Transferred . | . . . . . Parts Sabotaged . | . . . . . Parts Stolen . | . . . . . Parts Stripped . | . . . . . Power Chain Reactions . | . . . . . Missiles Intercepted . | . . . . . Alert | -11 -10 -10 -10 -9 ------- Run | Scr Mat Min Exi Min Peak Influence 295 | 15 295 215 . 3 Initial 100 | . 9 100 . . Average 156 | 6 162 174 . 1 Maximum Alert Level 1 | . 1 1 . . Low Security (%) 57 | 100 67 25 . 100 Level 1 42 | . 32 74 . . Level 2 . | . . . . . Level 3 . | . . . . . Level 4 . | . . . . . Level 5 . | . . . . . High Security . | . . . . . Max Security . | . . . . . Squads Dispatched 3 | . 3 . . . Investigation 3 | . 3 . . . Extermination . | . . . . . Reinforcement . | . . . . . Assault . | . . . . . Garrison . | . . . . . Intercept . | . . . . . Searches Triggered . | . . . . . Construction Impeded . | . . . . . Haulers Reinforced . | . . . . . Active Scanning Responses . | . . . . . Cargo Convoy Interrupts . | . . . . . Stealth | -11 -10 -10 -10 -9 --------- Run | Scr Mat Min Exi Min Distress Signals . | . . . . . Communications Jammed . | . . . . . Distress Signals . | . . . . . Times Spotted 32 | . 18 5 . 9 Peak Tracking Total 20 | . 3 4 . 20 Tactical Retreats . | . . . . . Traps | -11 -10 -10 -10 -9 ------- Run | Scr Mat Min Exi Min Traps Triggered 1 | . 1 . . . Indirectly . | . . . . . Trap Hack Attempts . | . . . . . Triggered . | . . . . . Disarmed . | . . . . . Reprogrammed . | . . . . . Reused . | . . . . . Traps Extracted . | . . . . . Installed . | . . . . . Triggered . | . . . . . Machines | -11 -10 -10 -10 -9 ---------- Run | Scr Mat Min Exi Min Machines Disabled . | . . . . . Max in Single Turn . | . . . . . Machines Sabotaged . | . . . . . Garrisons Compromised . | . . . . . Overloaded Fab Kills . | . . . . . Hacking | -11 -10 -10 -10 -9 --------- Run | Scr Mat Min Exi Min Machines Accessed 12 | . 11 . 1 . Terminals 8 | . 8 . . . Fabricators . | . . . . . Repair Stations 1 | . 1 . . . Recycling Units 2 | . 2 . . . Scanalyzers . | . . . . . Garrison Access . | . . . . . Total Hacks 40 | . 39 . 1 . Successful 26 | . 25 . 1 . Failed 13 | . 13 . . . Catastrophic . | . . . . . Database Lockouts 1 | . 1 . . . Manual 30 | . 30 . . . Terminals 31 | . 31 . . . Fabricators . | . . . . . Repair Stations 2 | . 2 . . . Recycling Units 6 | . 6 . . . Scanalyzers . | . . . . . Garrison Access . | . . . . . Terminal Hacks 13 | . 12 . 1 . Record 1 | . . . 1 . Part Schematic 1 | . 1 . . . Robot Analysis 4 | . 4 . . . Level Access Points 1 | . 1 . . . Branch Access Points 1 | . 1 . . . Terminal Index 1 | . 1 . . . Locate Traps 2 | . 2 . . . Zone Layout 2 | . 2 . . . Fabricator Hacks . | . . . . . Repair Station Hacks 1 | . 1 . . . Scan Component 1 | . 1 . . . Recycling Unit Hacks 1 | . 1 . . . Retrieve Components 1 | . 1 . . . Scanalyzer . | . . . . . Garrison Access Hacks . | . . . . . Unauthorized Hacks 11 | . 11 . . . Terminals 9 | . 9 . . . Assimilate 1 | . 1 . . . Botnet 7 | . 7 . . . Operators 1 | . 1 . . . Fabricators . | . . . . . Repair Stations . | . . . . . Recycling Units 2 | . 2 . . . Tunnel 2 | . 2 . . . Scanalyzers . | . . . . . Garrison Access . | . . . . . Data Cores Recovered . | . . . . . Used . | . . . . . Hacking Detections 10 | . 10 . . . Full Trace Events 2 | . 2 . . . Feedback Events . | . . . . . Feedback Blocked . | . . . . . Robot Schematics Acquired . | . . . . . Robots Built . | . . . . . Authchips . | . . . . . Time . | . . . . . Total Robot Build Rating . | . . . . . Part Schematics Acquired 1 | . 1 . . . Parts Built . | . . . . . Authchips . | . . . . . Time . | . . . . . Total Part Build Rating . | . . . . . Parts Repaired . | . . . . . Time . | . . . . . Parts Recycled . | . . . . . Recycled Matter . | . . . . . Retrieved Matter . | . . . . . Retrieved Components 2 | . 2 . . . Parts Scanalyzed . | . . . . . Part Schematics Acquired . | . . . . . Parts Damaged . | . . . . . Bothacking | -11 -10 -10 -10 -9 ------------ Run | Scr Mat Min Exi Min Used RIF Installer . | . . . . . Robots Hacked . | . . . . . Non-combat . | . . . . . Combat . | . . . . . Robot Hacks Applied . | . . . . . Relay Couplers Released . | . . . . . Fabnet Peak Effective % . | . . . . . Robots Rewired . | . . . . . Allies Hacked . | . . . . . Hacks Repelled . | . . . . . Allies | -11 -10 -10 -10 -9 -------- Run | Scr Mat Min Exi Min Total Allies 3 | . . . . 3 Largest Group 3 | . . . . 3 Highest-Rated Group 40 | . . . . 40 Highest-Rated Ally 16 | . . . . 16 Total Orders . | . . . . . Ally Attacks 10 | . . . . 10 Total Damage 103 | . . . . 103 Kills . | . . . . . Allies Corrupted . | . . . . . Allies Melted . | . . . . . Intel | -11 -10 -10 -10 -9 ------- Run | Scr Mat Min Exi Min Robot Analysis Total 4 | . 4 . . . Derelict Logs Recovered 1 | . . 1 . . Drone Launches . | . . . . . Drone Recoveries . | . . . . . Exploration | -11 -10 -10 -10 -9 ------------- Run | Scr Mat Min Exi Min Turns Passed 1924 | 79 1146 480 198 21 Spaces Moved 1468 | 52 807 414 188 7 Core 1 | 1 . . . . Treads . | . . . . . Legs . | . . . . . Wheels 1467 | 51 807 414 188 7 Hover . | . . . . . Flight . | . . . . . Fastest Speed 50 | 50 80 105 105 105 Average Speed 94 | 85 86 105 105 105 Slowest Speed 105 | 90 105 105 105 105 Overloaded Moves . | . . . . . Propulsion Burnouts . | . . . . . Robots Hopped . | . . . . . Cave-ins Triggered . | . . . . . Exploration Rate (%) 50 | 3 97 89 59 5 Regions Visited 4 Branch Regions 3 Pre-discovered Areas 3 | . 2 . 1 . Known Exits Taken 1 | . 1 . . . Unknown Exits Taken 3 | 1 . 1 1 . Scrap Searched 1 | . . 1 . . Spaces Dug 4 | . 2 . . 2 Terrain Destroyed 4 | . 2 . . 2 Melee 4 | . 2 . . 2 Projectile . | . . . . . AOE . | . . . . . Terrain Rammed . | . . . . . Walls Destroyed . | . . . . . Machines Disabled . | . . . . . Actions | -11 -10 -10 -10 -9 --------- Run | Scr Mat Min Exi Min Total 1812 | 71 1097 439 189 16 Wait 152 | . 139 10 . 3 Move 1464 | 51 806 413 187 7 Hop . | . . . . . Pick Up 21 | 5 16 . . . Fast Attach 7 | 6 1 . . . Attach 2 | 1 1 . . . Detach 1 | . 1 . . . Swap 22 | 1 14 3 1 3 Drop 18 | . 16 1 1 . Fire 121 | 7 101 12 . 1 Melee 4 | . 2 . . 2 Ram . | . . . . . Kick . | . . . . . Crush . | . . . . . Escape Stasis . | . . . . . Rewire . | . . . . . Trap . | . . . . . Miscellaneous . | . . . . . Route ------- -11/Scrapyard -10/Materials (discovered 5 exits: *Mat x3 / *Min x2) -10/Mines (discovered 3 exits: *Mat x2 / *Exi) -10/Exiles -9/Mines History --------- Turn | Location | Event 36 | -11/Scrapyard | Discovered new exit (range 15) 80 | -11/Scrapyard | Entered Materials 130 | -10/Materials | Discovered new exit (range 13) 313 | -10/Materials | Build established: Mutant 323 | -10/Materials | Identified exit to Mines 432 | -10/Materials | Discovered new exit (range 3) 563 | -10/Materials | Identified exit to Materials 571 | -10/Materials | Central database locked down 798 | -10/Materials | Core integrity fell below 50% 1226 | -10/Materials | Entered Mines 1229 | -10/Mines | Discovered exit to Materials (range 8) 1249 | -10/Mines | Core integrity fell below 20% 1298 | -10/Mines | Build established: Scavenger-Mutant 1357 | -10/Mines | Discovered exit to Materials (range 8) 1438 | -10/Mines | Learned Materials trap positions 1701 | -10/Mines | Deemed a non-threat by the Exiles lab entrance 1702 | -10/Mines | Discovered new exit (range 5) 1706 | -10/Mines | Entered Exiles 1733 | -10/Exiles | Met 8R-AWN 1748 | -10/Exiles | Met EX-HEX 1804 | -10/Exiles | Met EX-DEC 1823 | -10/Exiles | Learned location of Zion (-6) 1840 | -10/Exiles | Met EX-BIN 1894 | -10/Exiles | Discovered new exit (range 12) 1904 | -10/Exiles | Entered Mines 1905 | -9/Mines | Assembled infested the area 1907 | -9/Mines | Assisted by bots powering up and referring to "LRC-V3" 1910 | -9/Mines | Assisted by a Guerilla fighting off Assembled 1925 | -9/Mines | Destroyed by as-10012 with Assembled Blade Last Messages --------------- in the trials you can have one of our prototypes. How's that for a sweet deal? 01894_ EXIT=FOUND LOCATION=UNKNOWN GOAL=ESCAPE 01905_ ALERT: Infestation in the mines, dispatching Demolisher response squad. 01907_ Trooper 2a: "Hello LRC-V3. What is your command?" 01907_ Mercenary 2a: "Hello LRC-V3. What is your command?" 01907_ Trooper 2b: "Hello LRC-V3. What is your command?" 01908_ 9X-QN9(h): "I'll hold them off! Go on ahead or try to find another way!" 01908_ HV Slug penetrates Wall. 01910_ A derelict emerges from the shadows: "You need to get out of here! I've been tracking a group of Assembled to figure out where they're coming from, and they're closing on this area, come on!" 01911_ Mercenary 2a destroyed. 01913_ HV Slug penetrates Wall. 01915_ HV Slug penetrates as-32345. 01915_ as-32345 suffers critical hit (Destroy). 01916_ Trooper 2a heat damages Imp. Heat Sink. 01918_ Trooper 2a heat damages Aluminum Leg, Aluminum Leg, Particle Gun, Lgt. Nuclear Core. Map ----- +----------------------------------------------------+ | ?????????????????????????????????????????????????? | | ?????????????????????????????????????????????????? | | ?????????????????????????????????????????????????? | | ?????????????????????????????????????????????????? | | ?????????????????????????????????????????????????? | | ?????????????????????????????????????????????????? | | ?????????????????????????????????????????????????? | | ?????????????????????????????????????????????????? | | ?????????????????????????????????????????????????? | | ?????????????????????????????????????????????????? | | ?????????????????????????????????????????????????? | | ?????????????????????????????????????????????????? | | ?????????????????????????????????????????????????? | | ?????????????????????????????????????????????????? | | ?????????????????????????????????????????????????? | | ?????????????????????????????????????????????????? | | ?????????????????????????????????????????????????? | | ?????????????????????????????????????????????????? | | ?????????????????????????????????????????????????? | | ?????????????????????????????????????????????????? | | ?????????????????????????????????????????????????? | | ?????????????????????????????????????????????????? | | ?????????????????????????????????????????????????? | | ?????????????????????????????????????????????????? | | ????????????????????????###??????????????????????? | | ????????????????????????#@##?????????????????????? | | ??????????????????????####a#?????????????????????? | | ??????????????????????# ##?????????????????????? | | ????????????????????#"# #??????????????????????? | | ?????????# ######" ############???????????? | | ??????????? !%* $ ???????? | | ?????????? ####" ???????? | | ???????????????????### ###### ####??????????? | | ?????????????????????## #????????????????????? | | ??????????????????????### ##????????????????????? | | ????????????????????????####?????????????????????? | | ?????????????????????????????????????????????????? | | ?????????????????????????????????????????????????? | | ?????????????????????????????????????????????????? | | ?????????????????????????????????????????????????? | | ?????????????????????????????????????????????????? | | ?????????????????????????????????????????????????? | | ?????????????????????????????????????????????????? | | ?????????????????????????????????????????????????? | | ?????????????????????????????????????????????????? | | ?????????????????????????????????????????????????? | | ?????????????????????????????????????????????????? | | ?????????????????????????????????????????????????? | | ?????????????????????????????????????????????????? | | ?????????????????????????????????????????????????? | +----------------------------------------------------+ Best States ------------- Heat Dissipation 25 Energy Generation 10 Energy Capacity 250 Matter Stores 300 Matter Capacity 300 Sight Range 16 Terrain Scan Density 10 Propulsion Shielding 33 Evasion (%) 44 Item Schematics ----------------- Huge Storage Unit | -10/Materials | Hacked Robot Schematics ------------------ None Fabricated ------------ Nothing Alien Tech Used ----------------- None Achievements -------------- None Challenges ------------ None Game ------ Seed CoolingSupercompositeRail Manual? 0 Play Time 00:17:15 Cumulative 516.3 hours Start 2022.05.28 @ 14:38:32 End 2022.05.28 @ 14:55:32 Sessions 1 Manual Loads 0 Difficulty Rogue Special Mode None Game No. 425 Rogue 425 Adventurer 0 Explorer 0 Win Type - Total 3 Types 2/0/0/1/0/0/0/0/0 Lore% 70 Gallery% 82 Achievement% 66 Wizard Run 0 Options --------- ASCII 0 Keyboard 1 Movement Numpad Keybinds 0 Fullscreen 1 Font 12/Terminus Map View 83x54 Tactical HUD 1 Map Filters NONE Filters NONE Steam 1 RUN: c1657222-09ec-440a-8fcb-237e9dc587e5